Workbook

Sheet Despesas com viagem
A5: ANEXO IV - PLANILHA DE CUSTOS DE VIAGENS
A6: PLANILHA DE ORÇAMENTO DESPESAS DE VIAGEM – MOTORISTA
A7: ITENS | B7: Capital | G7: Demais Localidades | L7: CUSTO TOTAL
B8: Qtde mensal | C8: Qtde Anual | D8: Valor Unitário | E8: Custo Mensal R$ | F8: Custo Anual R$ | G8: Qtde mensal | H8: Qtde Anual | I8: Valor Unitário | J8: Custo Mensal R$ | K8: Custo Anual R$ | L8: MENSAL | M8: ANUAL
A9: Alimentação | B9: 4 | C9: =B9*12 -> 48 | D9: 100.59 | E9: =D9*B9 -> 402.36 | F9: =C9*D9 -> 4828.32 | G9: 40 | H9: =G9*12 -> 480 | I9: 100.59 | J9: =I9*G9 -> 4023.6 | K9: =H9*I9 -> 48283.2 | L9: =E9+J9 -> 4425.96 | M9: 53111.52
A10: Pernoite | B10: 4 | C10: =B10*12 -> 48 | D10: 345.08 | E10: =D10*B10 -> 1380.32 | F10: =C10*D10 -> 16563.84 | G10: 12 | H10: =G10*12 -> 144 | I10: 252.8 | J10: =I10*G10 -> 3033.6 | K10: =H10*I10 -> 36403.2 | L10: 4413.92 | M10: 52967.04
A11: Lucro e despesas indiretas (15%) + Tributos (8,65%) | D11: 0.2365 | E11: =SUM(E9:E10)*D11 -> 421.60382 | F11: =SUM(F9:F10)*D11 -> 5059.24584 | G11: Lucro e despesas indiretas (15%) + Tributos (8,65%) | I11: 0.2365 | J11: =SUM(J9:J10)*I11 -> 1669.0278 | K11: =SUM(K9:K10)*I11 -> 20028.3336 | L11: 2090.63162 | M11: 25087.57944
A12: TOTAL | D12: =SUM(D9:D10) -> 445.67 | E12: =SUM(E9:E11) -> 2204.28382 | F12: =SUM(F9:F11) -> 26451.40584 | G12: TOTAL | I12: =SUM(I9:I10) -> 353.39 | J12: =SUM(J9:J11) -> 8726.2278 | K12: =SUM(K9:K11) -> 104714.7336 | L12: =SUM(L9:L11) -> 10930.51162 | M12: =SUM(M9:M11) -> 131166.1394
A16: Os valores unitários das despesas acima foram obtidos da "TABELA DE DIÁRIAS DA CODEVASF" de acordo com a Norma N-201 da CODEVASF, considerando os valores dos ocupantes das funções FC-2 a FC-7, CC-2 a CC-4 e empregados de nível superior, médio e operacional.
A17: Aracaju/SE, 10 de junho de 2024.

Sheet Despesas com viagem (hidden)
A1: PLANILHA DE ORÇAMENTO DESPESAS DE VIAGEM PARA CADA FUNCIONÁRIO – MOTORISTA
A2: ITENS | B2: Preço médio praticado no mercado (R$) | C2: Qtde Anual | D2: Valor Anual | E2: Cotação I | F2: Cotação II | G2: Cotação III | H2: Cotação IV | I2: Cotação V | J2: Cotação VI | K2: Cotação VII | L2: Cotação VIII | M2: Cotação IX | N2: Cotação X | O2: Cotação XI | P2: Cotação XII | Q2: TOTAL
A3: Café da manhã | B3: =Q3/10 -> 20.7 | C3: =8*20*12 -> 1920 | D3: =C3*B3 -> 39744 | E3: 20 | F3: 20 | G3: 18 | H3: 30 | I3: 30 | J3: 29 | K3: 15 | L3: 0 | M3: 13 | N3: 15 | O3: 17 | P3: 0 | Q3: =SUM(E3:P3) -> 207
A4: Almoço | B4: =Q4/10 -> 38.699 | C4: =8*20*12 -> 1920 | D4: =C4*B4 -> 74302.08 | E4: 0 | F4: 80 | G4: 25 | H4: 40 | I4: 50 | J4: 59 | K4: 25 | L4: 20 | M4: 28 | N4: 29.99 | O4: 30 | P4: 0 | Q4: =SUM(E4:P4) -> 386.99
A5: Jantar | B5: =Q5/10 -> 37.699 | C5: =8*20*12 -> 1920 | D5: 72382.08 | E5: 0 | F5: 80 | G5: 20 | H5: 40 | I5: 50 | J5: 59 | K5: 25 | L5: 15 | M5: 28 | N5: 29.99 | O5: 30 | P5: 0 | Q5: =SUM(E5:P5) -> 376.99
A6: Pernoite | B6: =Q6/12 -> 126.1333333 | C6: =15*8*12 -> 1440 | D6: 181632 | E6: 119 | F6: 120 | G6: =240*1.1 -> 264 | H6: 70 | I6: 170 | J6: 155.6 | K6: 70 | L6: 80 | M6: 120 | N6: 105 | O6: 130 | P6: 110 | Q6: =SUM(E6:P6) -> 1513.6
A7: TOTAL | B7: =SUM(B3:B6) -> 223.2313333 | C7: - | Q7: =H7+K7+N7 -> 0
A9: Os orçamentos acima foram feitos em Bom Jesus da Lapa em cidades onde há Unidades Descentralizadas da Codevasf-2ªSR. Guanambi, Barreiras, Xique-Xique.
